bitfinex/quotes_ETHUSD_20241216
["timestamp","ask_amount","ask_price","bid_price","bid_amount"]
[1734307813273,2.52007,3968.2,3968.0,0.7562]
[1734307813512,2.5204,3967.7,3967.4,0.7702]
[1734307813718,2.16056166,3968.7,3967.4,0.7702]
[1734307813923,2.52021,3968.0,3967.4,0.7702]
[1734307814079,2.52001,3968.3,3967.4,0.7702]
[1734307814421,3.28781417,3968.6,3967.4,0.7702]
[1734307814786,2.52016,3968.0,3967.4,0.7702]
[1734307815320,0.76803417,3968.6,3967.4,0.7702]
[1734307815508,2.52031,3967.8,3967.4,0.7702]
[1734307815691,2.52016,3968.0,3967.4,0.7702]
[1734307815875,2.5199,3968.4,3967.4,0.7702]
[1734307816083,2.77189,3968.4,3967.4,0.7702]
[1734307816399,2.52011,3968.1,3967.4,0.7702]
[1734307817024,3.0,3968.9,3967.4,0.7702]
[1734307817025,2.52027,3967.9,3967.4,0.7702]
[1734307817319,2.52044,3967.6,3967.4,0.7702]
[1734307819675,3.0,3968.2,3967.4,0.7702]
[1734307819676,2.52047,3967.5,3967.4,0.7702]
[1734307820116,2.52047,3967.5,3966.4,0.7775]
[1734307820117,2.52083,3967.0,3966.4,0.7775]
[1734307820422,2.52029,3967.8,3966.4,1.11240703]
[1734307820636,2.52091,3966.9,3966.4,0.7775]
[1734307820816,2.52071,3967.2,3966.7,0.51417573]
[1734307821438,2.52022,3967.9,3966.4,0.7775]
[1734307821584,2.52098,3966.7,3966.4,0.7775]
[1734307821784,2.52066,3967.3,3966.4,0.7775]
[1734307822104,2.52066,3967.3,3966.5,0.5152338]
[1734307822105,2.52094,3966.8,3966.5,0.5152338]
[1734307822409,2.52076,3967.1,3966.5,0.5152338]
[1734307822610,2.52076,3967.1,3966.6,0.12927338]
[1734307822929,2.52055,3967.4,3966.7,0.7705]
[1734307823080,2.52062,3967.3,3966.7,0.7705]
[1734307823424,2.52081,3967.0,3966.7,0.7705]
[1734307823598,2.52088,3966.9,3966.7,0.7705]
[1734307825107,2.5208,3967.0,3966.7,0.7705]
[1734307825491,2.52087,3966.9,3966.7,0.7705]
[1734307825907,2.52057,3967.4,3965.8,0.8328]
[1734307826095,2.52131,3966.2,3965.8,0.8328]
[1734307826300,2.52143,3966.0,3965.8,0.8328]
[1734307826625,2.52143,3966.0,3965.9,0.50050896]
[1734307826930,2.52143,3966.0,3965.8,0.8328]
[1734307827796,2.52083,3967.0,3965.8,0.8328]
[1734307828046,2.52091,3966.9,3965.9,0.85801208]
[1734307828190,3.0923,3967.4,3965.9,0.8328]
[1734307828191,3.0,3967.4,3965.9,0.8328]
[1734307828396,2.52118,3966.4,3965.9,0.8328]
[1734307828898,2.52086,3966.9,3965.9,0.8328]
[1734307829394,0.0923,3967.0,3965.9,0.8328]
[1734307829595,2.52138,3966.1,3965.9,0.8328]
[1734307830051,2.52125,3966.3,3965.9,0.8328]
[1734307830212,2.52125,3966.3,3965.9,0.96704302]
[1734307830745,2.52112,3966.5,3965.9,0.96704302]
[1734307830900,2.52117,3966.4,3965.9,0.96704302]
[1734307831098,2.63331112,3967.0,3965.9,0.96704302]
[1734307831306,2.63331112,3967.0,3965.9,0.8328]
[1734307831307,2.52137,3966.1,3965.9,0.8328]
[1734307832811,5.15413112,3967.0,3965.9,0.8328]
[1734307832812,0.66486111,3967.3,3965.9,0.8328]
[1734307833013,2.52093,3966.8,3966.1,0.7758]
[1734307833260,2.52025,3967.9,3966.1,3.7758]
[1734307833425,2.52025,3967.9,3966.3,0.7758]
[1734307833956,2.52052,3967.5,3966.3,0.7758]
[1734307834115,2.52016,3968.0,3966.6,3.29682]
[1734307834317,2.51997,3968.3,3966.8,0.7758]
[1734307834855,2.33050186,3968.4,3966.8,0.7758]
[1734307834856,2.5204,3967.7,3966.8,0.7758]
[1734307835155,2.52067,3967.2,3966.8,0.7758]
[1734307835467,2.52003,3968.2,3966.8,0.7758]
[1734307835614,2.52062,3967.3,3966.8,0.7758]
[1734307836326,2.06748962,3968.0,3966.8,0.7758]
[1734307836327,2.52032,3967.8,3966.8,0.7758]
[1734307838129,2.06748962,3968.0,3966.8,0.7758]
[1734307838130,2.52038,3967.7,3966.8,0.7758]
[1734307838311,4.58769962,3968.0,3966.8,0.7758]
[1734307838513,2.52001,3968.3,3966.8,0.7758]
[1734307838514,2.06748962,3967.6,3966.8,0.7758]
[1734307838711,2.52071,3967.2,3966.8,0.7758]
[1734307839527,2.52056,3967.4,3966.8,0.7758]
[1734307839847,2.5208,3967.0,3966.6,0.49848819]
[1734307840154,2.52095,3966.8,3966.4,0.823]
[1734307841017,2.52079,3967.1,3966.4,0.823]
[1734307841259,2.52079,3967.1,3966.4,1.3323227]
[1734307842872,0.0923,3967.9,3966.4,1.3323227]
[1734307843066,2.52021,3968.0,3966.7,0.7535]
[1734307843217,4.94272186,3968.4,3966.7,0.7535]
[1734307843561,2.52015,3968.1,3966.8,0.7535]
[1734307843860,2.52015,3968.1,3967.0,0.7535]
[1734307844070,2.52019,3968.0,3967.0,0.7535]
[1734307844222,2.33050186,3968.4,3967.0,0.7535]
[1734307844424,2.52031,3967.8,3967.0,0.7535]
[1734307844646,2.06748962,3968.0,3967.2,0.51472144]
[1734307844647,2.5204,3967.7,3967.2,0.51472144]
[1734307844964,2.5204,3967.7,3967.0,0.7535]
[1734307845463,4.58764962,3968.0,3967.0,0.7535]
[1734307845649,2.06748962,3967.6,3967.0,0.7535]
[1734307845828,2.52062,3967.3,3967.0,0.7535]
[1734307846026,4.58794962,3967.6,3967.0,0.7535]
[1734307846232,2.5205,3967.5,3967.0,0.7535]
[1734307846449,2.06748962,3967.6,3967.0,0.7535]
[1734307846773,4.58791962,3967.6,3967.0,0.7535]
[1734307846982,2.52021,3968.0,3967.0,0.88022135]
[1734307846983,4.58770962,3968.0,3967.0,0.88022135]
[1734307847123,2.06748962,3968.0,3967.0,0.7535]
[1734307847477,2.52043,3967.6,3967.0,0.7535]
[1734307847842,2.52061,3967.3,3967.0,0.7535]
[1734307848027,2.52061,3967.3,3965.9,4.02862814]
[1734307848028,2.52061,3967.3,3966.7,1.247306]
[1734307848230,2.52061,3967.3,3966.7,0.7535]
[1734307849160,2.06748962,3967.2,3966.3,0.51359698]
[1734307849328,2.52114,3966.5,3965.8,0.7535]
[1734307849679,2.52114,3966.5,3965.9,0.49651571]
[1734307850029,4.58866962,3966.4,3965.9,0.49651571]
[1734307850229,4.58866962,3966.4,3965.8,0.7535]
[1734307850466,2.52126,3966.3,3965.8,0.7535]
[1734307850753,2.52126,3966.3,3965.8,1.26286445]
[1734307850956,2.52101,3966.7,3965.8,1.26286445]
[1734307851161,2.06748962,3966.8,3965.8,1.6891509]
[1734307851375,2.06748962,3966.8,3965.9,0.7594]
[1734307851538,2.52075,3967.1,3965.9,0.7594]
[1734307851876,2.52075,3967.1,3966.0,0.16950509]
[1734307852255,2.06748962,3967.2,3966.0,0.16950509]
[1734307852256,2.5208,3967.0,3966.0,0.16950509]
[1734307852456,2.06748962,3967.2,3966.0,0.16950509]
[1734307852634,2.06748962,3967.2,3965.9,0.7594]
[1734307852835,0.0923,3967.6,3965.9,0.7594]
[1734307852836,2.06748962,3966.8,3965.9,0.7594]
[1734307853268,2.52103,3966.7,3965.9,0.7594]
[1734307853575,2.52103,3966.7,3965.5,3.0]
[1734307853576,2.52046,3967.6,3966.1,0.8282]
[1734307853781,2.06748962,3967.3,3966.4,1.32965366]
[1734307853992,2.52067,3967.2,3966.4,1.32965366]
[1734307855466,2.06748962,3967.3,3966.4,1.32965366]
[1734307856592,2.06748962,3967.3,3966.4,3.85081366]
[1734307856893,2.06748962,3967.8,3966.4,1.32965366]
[1734307857039,2.52054,3967.4,3966.4,1.46261903]
[1734307858664,2.06748962,3967.8,3966.4,1.46261903]
[1734307858865,2.52041,3967.7,3966.4,1.46261903]
[1734307859071,2.52041,3967.7,3966.6,0.7965]
[1734307859271,2.06748962,3967.8,3966.7,0.82170905]
[1734307859457,2.52021,3968.0,3966.7,0.7965]
[1734307859654,2.52021,3968.0,3966.7,2.52098]
[1734307859853,2.52021,3968.0,3966.8,1.08843639]
[1734307860062,4.58777962,3967.8,3966.8,1.08843639]
[1734307860399,4.58777962,3967.8,3966.9,0.49791234]
[1734307860400,2.06748962,3967.8,3966.9,0.49791234]
[1734307860592,2.52045,3967.6,3966.9,0.49791234]
[1734307860944,2.06748962,3967.8,3966.9,0.49791234]
[1734307861146,2.52035,3967.7,3966.9,0.49791234]
[1734307861347,0.0923,3968.4,3967.0,0.7975]
[1734307861348,2.06748962,3968.3,3967.0,0.7975]
[1734307861726,2.52023,3967.9,3967.0,0.7975]
[1734307863189,2.52008,3968.2,3967.0,0.7975]
[1734307864227,4.58771962,3967.9,3967.0,0.7975]
[1734307864725,2.06748962,3968.3,3967.1,0.7603]
[1734307864883,2.06748962,3968.3,3967.1,0.88984123]
[1734307865486,2.06748962,3968.3,3967.1,3.41056123]
[1734307865936,2.52006,3968.2,3967.1,0.88984123]
[1734307866240,2.52006,3968.2,3967.6,0.50296908]
[1734307866935,2.52006,3968.2,3967.7,0.7889]
[1734307867658,2.76906144,3968.7,3967.7,0.7889]
[1734307867969,2.51978,3968.6,3967.7,0.7889]
[1734307868493,2.06748962,3968.7,3967.7,0.7889]
[1734307869643,2.61159,3969.4,3967.4,1.05382973]
[1734307869644,2.06748962,3968.6,3967.8,0.7865]
[1734307869843,2.06748962,3967.9,3967.8,0.7865]
[1734307870144,2.06748962,3967.9,3967.5,0.7865]
[1734307870442,2.52049,3967.5,3966.8,0.7865]
[1734307870691,2.5208,3967.0,3966.6,0.49343032]
[1734307870785,2.5208,3967.0,3966.3,0.7865]
[1734307870990,2.52112,3966.5,3966.3,0.7865]
[1734307871199,2.52129,3966.3,3965.8,0.7865]
[1734307871434,4.68058962,3967.0,3966.0,0.5045645]
[1734307871435,2.52086,3966.9,3966.0,0.5045645]
[1734307871601,2.52086,3966.9,3965.8,0.7865]
[1734307872230,2.52086,3966.9,3965.8,1.28461575]
[1734307872437,2.52108,3966.6,3965.8,1.28461575]
[1734307872731,2.52112,3966.5,3965.8,1.41307733]
[1734307873654,2.52121,3966.4,3965.8,1.41307733]
[1734307873820,2.61286,3967.4,3965.8,0.7865]
[1734307873821,2.06748962,3967.1,3965.8,0.7865]
[1734307874025,2.52139,3966.1,3965.8,0.7865]
[1734307874329,2.52145,3966.0,3965.8,0.7865]
[1734307875207,2.52129,3966.3,3965.8,0.7865]
[1734307875408,2.52131,3966.2,3965.8,0.7865]
[1734307875814,2.52111,3966.5,3965.8,0.7865]
[1734307876039,2.52149,3965.9,3965.8,0.7865]
[1734307876308,2.52149,3965.9,3964.8,3.0]
[1734307876309,2.06748962,3965.9,3964.6,0.8127]
[1734307876530,2.06748962,3965.9,3964.7,0.49552284]
[1734307876770,2.52173,3965.6,3964.7,0.49552284]
[1734307876958,2.52173,3965.6,3964.8,0.8127]
[1734307877171,2.06748962,3966.3,3964.8,0.8127]
[1734307877312,2.06748962,3966.7,3965.0,0.8127]
[1734307877507,2.52143,3966.0,3965.2,0.8127]
[1734307877912,2.52128,3966.3,3965.3,0.85789958]
[1734307878121,2.36748962,3966.7,3965.4,0.8127]
[1734307878122,2.52139,3966.1,3965.4,0.8127]
[1734307878338,2.36748962,3966.7,3965.4,0.8127]
[1734307878809,2.52122,3966.4,3965.4,0.8127]
[1734307879037,2.52118,3966.4,3965.4,0.8127]
[1734307879365,2.36748962,3966.7,3964.5,2.05725628]
[1734307879366,2.52157,3965.8,3965.0,1.30514819]
[1734307879658,2.06748962,3966.5,3965.0,1.30514819]
[1734307879865,2.52125,3966.3,3965.0,1.30514819]
[1734307880011,2.98935396,3966.3,3965.0,1.43566301]
[1734307880211,2.98935396,3966.3,3965.1,0.8127]
[1734307880212,0.46810396,3966.3,3965.1,0.8127]
[1734307880440,4.58837962,3966.9,3965.3,0.8127]
[1734307880912,2.52097,3966.8,3965.3,0.8127]
[1734307881062,2.52097,3966.8,3965.3,3.8127]
[1734307881263,2.06748962,3966.9,3965.3,0.8127]
[1734307881462,2.06748962,3966.9,3965.6,0.7572]
[1734307881864,2.06748962,3966.9,3965.7,0.49601108]
[1734307882175,2.06748962,3966.9,3965.8,0.7572]
[1734307882378,2.15978962,3967.3,3965.8,0.7572]
[1734307882577,0.0923,3967.3,3965.9,2.52146]
[1734307882778,2.52055,3967.4,3966.0,1.1371884]
[1734307883007,2.52055,3967.4,3966.1,0.7572]
[1734307883418,2.52062,3967.3,3966.1,0.7572]
[1734307883583,7.24110962,3967.3,3966.1,0.7572]
[1734307883784,2.52069,3967.2,3966.1,0.7572]
[1734307885086,2.06748962,3967.3,3966.1,0.7572]
[1734307885289,2.52067,3967.2,3966.1,0.7572]
[1734307885541,2.52095,3966.8,3966.1,0.7572]
[1734307886151,0.21597896,3967.5,3966.2,0.8237]
[1734307887251,2.73645896,3967.5,3966.2,0.8237]
[1734307887453,2.73645896,3967.5,3966.2,0.81095444]
[1734307887620,0.48962486,3967.4,3966.2,0.81095444]
[1734307887821,2.06748962,3967.7,3966.4,2.52116]
[1734307888155,0.31174896,3967.9,3966.8,0.49629466]
[1734307888156,0.20674896,3967.9,3966.8,0.49629466]
[1734307888305,2.06748962,3968.1,3966.8,0.49629466]
[1734307888909,0.105,3967.6,3966.8,0.49629466]
[1734307889111,2.52042,3967.6,3966.2,3.0]
[1734307889314,0.45879096,3967.5,3966.2,3.65499781]
[1734307889528,2.06748962,3967.7,3966.2,3.65499781]
[1734307889529,2.06748962,3967.7,3966.2,2.52129]
[1734307889851,2.06748962,3967.7,3966.4,3.01458212]
[1734307890211,2.06748962,3967.7,3966.4,0.49342212]
[1734307890403,2.06748962,3968.1,3966.5,0.88268536]
[1734307890609,2.51989,3968.5,3967.2,2.52065]
[1734307890610,2.06748962,3968.5,3967.2,2.52065]
[1734307890808,2.06748962,3968.5,3966.6,2.28107413]
[1734307890809,2.06748962,3968.5,3967.0,0.7877]
[1734307891034,2.73715896,3968.4,3967.0,0.7877]
[1734307892653,2.51998,3968.3,3967.0,0.7877]
[1734307893033,0.21724896,3968.4,3967.5,0.8046]
[1734307893329,2.06748962,3968.9,3967.5,0.8046]
[1734307893838,2.06748962,3968.9,3967.7,0.8046]
[1734307894431,2.51967,3968.8,3967.7,0.8046]
[1734307895173,2.06748962,3968.9,3967.7,0.8046]
[1734307895377,0.45869696,3968.8,3967.7,0.8046]
[1734307896041,2.06748962,3968.9,3967.7,0.8046]
[1734307896578,0.2630496,3969.2,3967.7,2.52034]
[1734307896744,0.2630496,3969.2,3968.1,0.49550717]
[1734307896945,2.7824496,3969.2,3968.2,0.8166]
[1734307897693,2.51972,3968.7,3967.9,0.815]
[1734307897980,2.06748962,3968.5,3967.9,0.815]
[1734307898272,2.52004,3968.2,3967.9,0.815]
[1734307898433,2.06748962,3968.5,3967.9,0.815]
[1734307898790,2.51999,3968.3,3967.9,0.815]
[1734307899705,0.46922096,3968.4,3967.4,0.813]
[1734307899909,2.06748962,3968.1,3967.4,0.813]
[1734307900216,2.06748962,3968.1,3966.9,0.813]
[1734307900484,2.52048,3967.5,3966.9,0.813]
[1734307903590,2.5206,3967.4,3966.9,0.813]
[1734307903793,0.25206,3967.3,3966.9,0.813]
[1734307904150,2.52072,3967.2,3966.9,0.813]
[1734307904346,2.52066,3967.3,3966.9,0.813]
[1734307904554,2.52073,3967.1,3966.9,0.813]
[1734307904989,2.06748962,3968.1,3966.9,0.813]
[1734307905201,0.21724896,3968.1,3967.0,0.7652]
[1734307905353,2.52006,3968.2,3967.0,0.7652]
[1734307905354,2.52006,3968.2,3967.1,0.7652]
[1734307905781,2.52002,3968.3,3967.1,0.7652]
[1734307906166,4.58732962,3968.5,3967.1,2.52068]
[1734307906381,4.58732962,3968.5,3967.3,0.7652]
[1734307906698,4.58732962,3968.5,3967.7,0.7652]
[1734307908719,2.51991,3968.4,3967.7,0.7652]
[1734307908923,2.51969,3968.8,3967.7,0.7652]
[1734307909732,2.51978,3968.6,3967.7,0.7652]
[1734307915032,2.52025,3967.9,3967.7,0.7652]
[1734307915232,0.105,3968.4,3966.4,0.7924]
[1734307915521,2.52038,3967.7,3966.6,0.7924]
[1734307915693,2.52041,3967.6,3966.6,0.7924]
[1734307916028,4.58784962,3967.7,3966.6,0.7924]
[1734307916330,2.52066,3967.3,3966.6,0.7924]
[1734307916485,2.52047,3967.6,3966.6,0.7924]
[1734307916686,2.06748962,3967.7,3966.6,0.7924]
[1734307916883,2.52045,3967.6,3966.6,1.29558267]
[1734307917108,2.37798962,3968.1,3966.7,0.7565]
[1734307917322,2.52028,3967.8,3966.7,0.7565]
[1734307917522,0.3105,3968.1,3966.7,0.7565]
[1734307917523,4.89807962,3968.1,3966.7,0.7565]
[1734307917689,0.74180996,3968.0,3966.7,0.7565]
[1734307918169,2.52067,3967.2,3966.7,0.7565]
[1734307918438,2.52081,3967.0,3966.7,0.7565]
[1734307919332,2.17248962,3967.7,3966.7,0.7565]
[1734307919630,2.52092,3966.9,3966.7,0.7565]
[1734307920406,2.5206,3967.4,3966.7,0.7565]
[1734307920407,2.52073,3967.1,3966.7,0.7565]
[1734307920828,2.52075,3967.1,3966.7,0.7565]
[1734307920992,4.58808962,3967.3,3966.7,0.7565]
[1734307921209,2.52088,3966.9,3966.7,0.7565]
[1734307921399,2.52088,3966.9,3966.2,0.49222816]
[1734307921734,0.105,3967.0,3965.5,0.8274]
[1734307922230,2.52119,3966.4,3965.5,0.8274]
[1734307923038,2.52119,3966.4,3964.7,2.05725628]
[1734307923039,2.52125,3966.3,3960.7,7.65492204]
[1734307923342,8.98,3965.9,3964.9,2.5221]
[1734307923557,8.98,3965.9,3964.6,0.02521524]
[1734307923840,8.98,3965.9,3965.1,2.522]
[1734307923991,8.98,3965.9,3964.9,5.52211]
[1734307924192,8.98,3965.9,3964.9,2.52211]
[1734307924493,8.98,3965.9,3965.0,2.54725525]
[1734307924891,8.98,3965.9,3965.0,0.02521525]
[1734307925126,8.98,3965.9,3964.8,3.0]
[1734307925343,8.98,3965.9,3964.9,3.0]
[1734307925835,8.98,3965.9,3965.0,3.0]
[1734307926024,8.98,3965.9,3965.1,0.8275]
[1734307926393,8.73,3965.5,3965.1,0.8275]
[1734307926708,0.5,3965.0,3963.9,0.8275]
[1734307927015,9.23,3965.0,3964.7,0.8275]
[1734307927234,10.405192,3965.0,3964.7,0.8275]
[1734307927438,12.927282,3965.0,3964.7,0.8275]
[1734307927796,12.927282,3965.0,3962.0,1.513]
[1734307927797,0.25,3964.4,3964.1,0.7628]
[1734307928395,0.25,3964.6,3964.1,0.7628]
[1734307928396,0.5,3964.6,3964.1,0.7628]
[1734307928596,3.94534,3964.6,3964.2,0.49834421]
[1734307929437,0.25,3964.6,3964.3,0.7582]
[1734307929642,8.73,3964.7,3964.3,0.7582]
[1734307931035,0.25,3964.4,3964.3,0.7582]
[1734307931540,8.98,3964.4,3964.3,0.7582]
[1734307933594,9.23,3964.4,3964.3,0.7582]
[1734307933799,0.25,3964.2,3963.3,3.8298]
[1734307934095,8.98,3964.0,3963.3,0.8298]
[1734307934299,0.25,3963.6,3963.3,0.8298]
[1734307934493,0.25,3963.6,3961.4,2.13796324]
[1734307934494,0.25,3963.4,3963.0,0.8076]
[1734307934735,0.25,3963.2,3962.9,0.51649819]
[1734307934940,0.25,3962.9,3962.6,0.8076]
[1734307935716,0.25,3962.9,3962.7,0.50140679]
[1734307935717,8.73,3962.8,3962.7,0.50140679]
[1734307935896,0.25,3962.4,3961.9,0.8154]
[1734307936398,0.25,3962.4,3962.2,0.50962575]
[1734307936593,8.73,3962.3,3962.2,0.50962575]
[1734307936819,8.73,3962.3,3961.9,0.8154]
[1734307936820,0.25,3962.2,3961.9,0.8154]
[1734307937027,8.73,3962.3,3961.9,0.8154]
[1734307937239,0.5,3962.2,3961.9,0.8154]
[1734307937751,0.49696536,3962.2,3961.5,0.831]
[1734307937919,8.73,3961.8,3961.5,0.831]
[1734307938252,0.25,3961.7,3961.5,0.831]
[1734307939643,0.25,3961.7,3961.6,0.51139056]
[1734307939846,8.98,3961.7,3961.1,0.7765]
[1734307940047,0.25,3961.5,3961.1,0.7765]
[1734307940202,11.25418,3961.7,3961.1,0.7765]
[1734307940203,0.25,3961.3,3961.1,0.7765]
[1734307940403,8.73,3961.2,3960.2,0.7852]
[1734307940617,8.73,3961.2,3960.2,1.117233]
[1734307941219,8.73,3961.2,3960.2,4.117233]
[1734307941752,0.25,3961.3,3960.2,0.7852]
[1734307941753,8.98,3960.9,3960.2,0.7852]
[1734307942169,8.73,3960.3,3959.8,0.7798]
[1734307942822,8.73,3960.1,3959.8,0.7798]
[1734307943032,8.73,3960.1,3958.9,0.09120891]
[1734307943033,9.628,3960.1,3959.2,0.7798]
[1734307943336,9.628,3960.1,3959.7,0.5143523]
[1734307943914,10.4361,3960.1,3959.7,0.5143523]
[1734307944537,10.4361,3960.1,3958.7,0.8054]
[1734307944853,10.4361,3960.1,3958.7,3.33145]
[1734307945812,10.4361,3960.1,3959.6,0.49255515]
[1734307946865,10.4361,3960.1,3958.8,3.0]
[1734307947043,10.4361,3960.1,3958.7,0.8054]
[1734307947227,10.9861,3960.1,3959.4,0.50477358]
[1734307947433,0.49696536,3959.5,3959.4,0.50477358]
[1734307948175,9.21696536,3959.5,3959.4,0.50477358]
[1734307949065,8.72,3959.5,3959.4,0.50477358]
[1734307952764,0.49696536,3959.8,3959.4,1.27527358]
[1734307952765,8.72,3959.8,3959.4,1.27527358]
[1734307952923,8.72,3959.9,3959.7,2.52542]
[1734307953123,8.72,3959.9,3959.8,1.02556736]
[1734307953357,8.72,3959.9,3959.8,4.02556736]
[1734307953867,0.252422,3961.6,3960.2,2.52509]
[1734307953868,8.72,3960.9,3960.2,2.52509]
[1734307954166,8.72,3960.9,3960.3,0.8257]
[1734307954465,8.72,3960.9,3960.3,3.35071]
[1734307954824,8.72,3960.9,3960.3,3.34255008]
[1734307955792,8.72,3960.9,3960.4,3.0]
[1734307955992,8.72,3960.9,3960.5,0.02524724]
[1734307956216,8.72,3961.4,3960.6,0.38427873]
[1734307956697,8.72,3961.4,3961.2,3.0]
[1734307956931,8.72,3961.9,3961.2,3.0]
[1734307957126,8.72,3961.9,3960.8,0.49330115]
[1734307957352,8.72,3961.9,3961.2,3.0]
[1734307957633,8.72,3962.0,3961.3,3.0]
[1734307957845,8.72,3962.0,3961.2,0.3]
[1734307958045,8.72,3962.0,3961.3,3.3253]
[1734307959294,8.72,3962.1,3961.3,0.8009]
[1734307959489,8.72,3962.1,3961.6,2.52419]
[1734307959950,8.72,3962.1,3961.9,0.49264239]
[1734307960613,8.72,3962.1,3962.0,0.7533]
[1734307960938,8.72,3963.0,3962.4,2.52366]
[1734307961238,8.72,3963.0,3962.1,2.90086524]
[1734307961239,0.24696536,3962.9,3962.1,2.90086524]
[1734307961738,8.72,3963.0,3962.3,2.52375]
[1734307961894,8.72,3962.9,3962.3,2.52375]
[1734307962100,8.72,3962.9,3962.1,3.37699524]
[1734307962300,8.72,3962.9,3962.1,5.90089524]
[1734307963908,8.72,3962.9,3962.2,2.52383]
[1734307964111,8.97,3962.9,3962.8,0.50010973]
[1734307964420,0.25,3962.6,3962.0,0.7533]
[1734307964732,0.24696536,3962.3,3962.0,0.49652742]
[1734307965250,0.24696536,3962.3,3962.0,0.44652742]
[1734307965430,8.72,3962.2,3962.0,0.44652742]
[1734307965633,9.21696536,3962.1,3962.0,0.44652742]
[1734307967023,9.21696536,3962.1,3961.5,0.7533]
[1734307967358,0.25,3961.9,3961.5,0.7533]
[1734307967566,8.97,3961.7,3960.7,3.8253]
[1734307967705,8.97,3961.7,3960.8,0.635012]
[1734307967905,8.97,3961.7,3960.7,0.8253]
[1734307968118,8.97,3961.7,3960.7,3.8253]
[1734307968651,8.97,3961.7,3960.7,0.8253]
[1734307969058,8.97,3961.7,3961.6,0.51043439]
[1734307971948,8.72,3961.6,3960.7,0.8253]
[1734307972456,8.72,3961.6,3961.4,0.50371491]
[1734307973465,0.25,3961.5,3961.4,0.50371491]
[1734307973642,0.24696536,3961.1,3960.7,0.8253]
[1734307974850,0.25,3961.3,3960.7,0.8253]
[1734307976373,0.24696536,3961.1,3960.7,0.8253]
[1734307976541,0.24696536,3961.1,3961.0,0.51309996]
[1734307976991,0.25,3961.3,3961.0,0.51309996]
[1734307977197,0.24696536,3961.1,3961.0,0.51309996]
[1734307977764,0.49696536,3961.1,3961.0,0.51309996]
[1734307977963,0.49696536,3961.1,3960.2,0.8265]
[1734307978174,8.96696536,3960.9,3960.2,0.8265]
[1734307978695,0.25,3960.6,3960.2,0.8265]
[1734307978850,8.72,3960.5,3960.2,0.8265]
[1734307979303,8.72,3960.5,3959.7,0.8265]
[1734307979597,0.25,3960.6,3959.7,0.8265]
[1734307979598,2.77489,3960.6,3960.4,0.51191472]
[1734307979800,0.55218554,3960.6,3959.3,3.8265]
[1734307980109,0.24696536,3960.0,3959.3,0.8265]
[1734307980317,8.73,3959.9,3959.3,0.8265]
[1734307980605,8.73,3959.6,3958.6,0.8265]
[1734307980762,8.73,3959.6,3959.1,2.52582]
[1734307981111,8.73,3959.6,3959.2,2.778322]
[1734307981246,8.73,3959.6,3959.2,0.252582]
[1734307981651,8.73,3959.6,3959.0,2.52585]
[1734307981973,0.24696536,3960.0,3959.5,0.51408471]
[1734307981974,8.73,3959.9,3959.5,0.51408471]
[1734307982553,8.73,3959.9,3959.6,0.7701]
[1734307982753,8.73,3960.6,3959.6,3.29558]
[1734307983064,8.73,3960.6,3959.7,3.02524994]
[1734307983265,8.73,3960.6,3959.7,3.0]
[1734307983799,0.25,3960.3,3959.6,0.7701]
[1734307984148,8.73,3960.6,3959.7,2.52542]
[1734307984354,8.73,3960.6,3959.9,2.52531]
[1734307984589,8.98,3960.8,3960.0,3.0]
[1734307984798,8.98,3960.8,3960.1,0.552531]
[1734307985301,8.73,3960.8,3960.1,0.552531]
[1734307985497,8.73,3960.8,3960.1,3.552531]
[1734307985853,8.73,3960.8,3960.2,0.8193]
[1734307986058,8.98,3960.8,3960.2,4.5090041]
[1734307986259,8.98,3960.8,3960.2,1.5090041]
[1734307986564,8.98,3960.8,3960.2,0.8193]
[1734307986991,8.73,3960.7,3960.5,0.5092506]
[1734307990587,8.73,3961.1,3960.5,0.5092506]
[1734307991111,0.25,3960.9,3960.5,0.5092506]
[1734307992176,1.17269654,3960.9,3960.5,0.5092506]
[1734307992381,0.25,3960.3,3959.8,0.7964]
[1734307992816,8.97696536,3960.2,3959.5,0.7964]
[1734307992971,8.73,3960.2,3959.5,3.32196]
[1734307993358,8.73,3960.2,3959.6,2.8602211]
[1734307993508,8.73,3960.2,3959.9,2.5253]
[1734307994301,8.73,3960.2,3959.6,2.8601711]
[1734307994466,8.73,3960.2,3960.1,0.51515617]
[1734307995021,9.90519154,3960.2,3960.1,0.51515617]
[1734307995202,0.25,3959.7,3959.3,3.0]
[1734307995512,0.25,3959.7,3958.4,4.66893637]
[1734307995513,8.73,3959.3,3958.4,0.8326]
[1734307995823,8.73,3959.3,3958.5,1.04904658]
[1734307996135,8.73,3959.3,3958.5,0.18584826]
[1734307996485,8.73,3959.3,3958.4,0.8326]
[1734307996666,8.73,3959.3,3958.5,3.0]
[1734307997337,12.06879,3959.3,3959.2,0.50856184]
[1734307997642,0.24696536,3959.0,3958.4,0.8326]
[1734307997844,8.97696536,3958.9,3957.9,3.27769]
[1734307997995,8.98,3958.8,3957.9,3.27769]
[1734307998193,0.25,3958.4,3957.9,0.7511]
[1734308000668,0.24696536,3958.6,3957.9,1.078887]
[1734308000963,8.73,3958.7,3958.3,0.50290779]
[1734308001141,8.73,3958.7,3958.3,3.02923779]
[1734308001521,8.73,3958.7,3958.5,2.52616]
[1734308001720,8.73,3959.0,3958.6,0.8095]
[1734308002552,0.25,3958.8,3958.3,0.50290779]
[1734308003109,0.25,3958.4,3958.3,0.50290779]
[1734308003512,9.22696536,3958.4,3958.3,0.50290779]
[1734308003909,8.98,3958.4,3958.3,0.50290779]